[Event "CCT Chessable Masters D-III 2024"]
[Site "Online"]
[Date "2024.02.02"]
[Round "51"]
[White "Zlatan56"]
[Black "Sargissian, Gabriel"]
[Result "0-1"]
[ECO "C84"]
[WhiteElo "2624"]
[BlackElo "2672"]
[Annotator "NA"]
[PlyCount "130"]
[EventDate "2024.01.12"]
[EventType "k.o."]
[EventCountry "NET"]
[SourceTitle "playchess.com"]
[Source "ChessBase"]
[SourceQuality "1"]
[TimeControl "600+2"]

1. e4 {[%emt 0:00:07]} e5 {[%emt 0:02:06]} 2. Nf3 {[%emt 0:00:03]} Nc6 {[%emt 0:00:07]} 3. Bb5 {[%emt 0:00:04]} a6 {[%emt 0:00:03]} 4. Ba4 {[%emt 0:00:04]} Nf6 {[%emt 0:00:03]} 5. O-O {[%emt 0:00:02]} Be7 {[%emt 0:00:04]} 6. d3 {[%emt 0:00:04]} b5 {[%emt 0:00:03]} 7. Bb3 {[%emt 0:00:04]} d6 {[%emt 0:00:03]} 8. a4 {[%emt 0:00:04]} Bd7 {[%emt 0:00:03]} 9. c3 {[%emt 0:00:04]} O-O {[%emt 0:00:03]} 10. Ba2 {[%emt 0:00:08]} bxa4 {[%emt 0:00:06]} 11. Qxa4 {[%emt 0:00:15]} Nd4 {[%emt 0:00:05]} 12. Qd1 {[%emt 0:00:04]} Nxf3+ {[%emt 0:00:03]} 13. Qxf3 {[%emt 0:00:02]} a5 {[%emt 0:00:23]} 14. Nd2 {[%emt 0:00:13]} a4 {[%emt 0:00:05]} 15. Nc4 {[%emt 0:00:13]} Be6 {[%emt 0:00:05]} 16. Ne3 {[%emt 0:00:27]} Bxa2 {[%emt 0:00:12]} 17. Rxa2 {[%emt 0:00:02]} g6 {[%emt 0:00:05]} 18. Qd1 {[%emt 0:00:24]} Qd7 {[%emt 0:00:12]} 19. Qc2 {[%emt 0:00:30]} Qb5 {[%emt 0:00:13]} 20. Bd2 {[%emt 0:00:16]} Ra6 {[%emt 0:00:10]} 21. Rfa1 {[%emt 0:00:08]} Rfa8 {[%emt 0:00:03]} 22. c4 {[%emt 0:00:08]} Qc6 {[%emt 0:00:10]} 23. Qd1 {[%emt 0:00:30]} Bf8 {[%emt 0:00:07]} 24. Qf3 {[%emt 0:00:38]} Bg7 {[%emt 0:00:05]} 25. h3 {[%emt 0:00:08]} Qb7 {[%emt 0:00:05]} 26. Bc3 {[%emt 0:00:04]} Nd7 {[%emt 0:00:12]} 27. Rd1 {[%emt 0:00:42]} Nc5 {[%emt 0:00:04]} 28. Ra3 {[%emt 0:00:04]} c6 {[%emt 0:00:21]} 29. h4 {[%emt 0:00:05]} h5 {[%emt 0:00:05]} 30. g4 {[%emt 0:00:04]} hxg4 {[%emt 0:00:11]} 31. Qxg4 {[%emt 0:00:02]} Ne6 {[%emt 0:00:10]} 32. h5 {[%emt 0:00:14]} Nf8 {[%emt 0:00:26]} 33. hxg6 {[%emt 0:00:06]} fxg6 {[%emt 0:00:03]} 34. Ng2 {[%emt 0:00:48]} Qd7 {[%emt 0:00:15]} 35. Qg3 {[%emt 0:00:04]} Qe7 {[%emt 0:00:21]} 36. d4 {[%emt 0:00:08]} Re8 {[%emt 0:00:25]} 37. dxe5 {[%emt 0:00:14]} Bxe5 {[%emt 0:00:03]} 38. Bxe5 {[%emt 0:00:03]} Qxe5 {[%emt 0:00:04]} 39. f4 {[%emt 0:00:07]} Qxb2 {[%emt 0:00:06]} 40. Rxd6 {[%emt 0:00:06]} Rxe4 {[%emt 0:00:17]} 41. Rxg6+ {[%emt 0:00:13]} Nxg6 {[%emt 0:00:05]} 42. Qxg6+ {[%emt 0:00:02]} Kf8 {[%emt 0:00:03]} 43. Rg3 {[%emt 0:00:12]} Qd4+ {[%emt 0:00:30]} 44. Kh2 {[%emt 0:00:08]} Ke7 {[%emt 0:01:01]} 45. Qf5 {[%emt 0:00:18]} Ra8 {[%emt 0:00:21]} 46. Qh7+ {[%emt 0:00:52]} Kd6 {[%emt 0:00:07]} 47. Rg5 {[%emt 0:00:02]} Rh8 {[%emt 0:00:15]} 48. c5+ {[%emt 0:00:03]} Ke6 {[%emt 0:00:13]} 49. f5+ {[%emt 0:00:20]} Kf6 {[%emt 0:00:28]} 50. Qxh8+ {[%emt 0:00:35]} Kxg5 {[%emt 0:00:03]} 51. Qg8+ {[%emt 0:00:06]} Kxf5 {[%emt 0:00:05]} 52. Qc8+ {[%emt 0:00:03]} Kf6 {[%emt 0:00:11]} 53. Qxc6+ {[%emt 0:00:05]} Re6 {[%emt 0:00:11]} 54. Qf3+ {[%emt 0:00:13]} Ke7 {[%emt 0:00:03]} 55. Qb7+ {[%emt 0:00:12]} Kf6 {[%emt 0:00:05]} 56. Qh7 {[%emt 0:00:07]} Qe5+ {[%emt 0:00:04]} 57. Kh3 {[%emt 0:00:03]} Qf5+ {[%emt 0:00:03]} 58. Qxf5+ {[%emt 0:00:03]} Kxf5 {[%emt 0:00:02]} 59. Nh4+ {[%emt 0:00:04]} Ke5 {[%emt 0:00:03]} 60. Nf3+ {[%emt 0:00:04]} Kd5 {[%emt 0:00:02]} 61. Kg4 {[%emt 0:00:03]} Rc6 {[%emt 0:00:02]} 62. Kf4 {[%emt 0:00:03]} Rxc5 {[%emt 0:00:03]} 63. Ke3 {[%emt 0:00:02]} Rc3+ {[%emt 0:00:02]} 64. Ke2 {[%emt 0:00:03]} Rxf3 {[%emt 0:00:02]} 65. Kxf3 {[%emt 0:00:03]} a3 {[%emt 0:00:03]} 0-1

[Event "CCT Chessable Masters D-III 2024"]
[Site "Online"]
[Date "2024.02.02"]
[Round "51"]
[White "Bortnyk, Oleksandr"]
[Black "Malakhov, Vladimir"]
[Result "1-0"]
[ECO "D00"]
[WhiteElo "2617"]
[BlackElo "2648"]
[Annotator "TA"]
[PlyCount "95"]
[EventDate "2024.01.12"]
[EventType "k.o."]
[EventCountry "NET"]
[SourceTitle "playchess.com"]
[Source "ChessBase"]
[SourceQuality "1"]
[TimeControl "600+2"]

{[%evp 9,95,-29,-10,-12,2,0,0,-7,0,-8,-14,-8,-15,-16,0,-84,9,2,13,18,16,0,14,-14,1,-27,0,0,27,27,22,17,33,0,0,0,0,-68,0,0,0,0,0,0,0,0,0,0,0,0,0,-97,0,0,0,0,0,0,0,0,0,0,0,0,0,0,529,521,896,890,874,875,875,870,870,870,857,849,29980,29981,29981,29982,29982,29978,29990,29991,29992,29993]} 1. d4 {[%emt 0:00:12]} d5 {[%emt 0:00:04]} 2. Nc3 {[%emt 0:00:01]} Nf6 {[%emt 0:00:05]} 3. Bf4 {[%emt 0:00:00]} a6 {[%emt 0:00:13]} 4. e3 {[%emt 0:00:01]} e6 {[%emt 0:00:11]} 5. a3 {[%emt 0:00:01]} b5 {[%emt 0:00:16]} 6. b4 {[%emt 0:00:04]} Nbd7 {[%emt 0:00:11]} 7. Nf3 {[%emt 0:00:02]} Bd6 {[%emt 0:00:35]} 8. Ne5 {[%emt 0:00:01] The position is equal.} Bb7 {[%emt 0:00:04] Inhibits Nc6.} 9. Bd3 {[%emt 0:00:01]} Ne4 {[%emt 0:00:33]} 10. Bxe4 {[%emt 0:00:04]} dxe4 {[%emt 0:00:03]} 11. Qg4 {[%emt 0:00:02]} g6 {[%emt 0:02:01]} 12. Bg5 {[%emt 0:00:03] [#]} (12. h4 $11) 12... Be7 {[%emt 0:00:09]} (12... h5 $1 $17 {[%cal Rh5g4]} 13. Qg3 (13. Qh4 $2 f6 $19) 13... f6 14. Nxd7 Qxd7 (14... Bxg3 15. Nxf6+ Kf7 16. fxg3 $11)) 13. Bxe7 $11 {[%emt 0:00:06]} (13. Nxe4 f5 14. Bxe7 Qxe7 $17) 13... Qxe7 {[%emt 0:00:01]} 14. Nxd7 {[%emt 0:00:01]} ({Don't play} 14. Nxe4 f5 15. Qh3 Bxe4 $17) 14... Kxd7 {[%emt 0:00:02]} 15. h4 {[%emt 0:01:24][%cal Og4f4]} (15. Nxe4 $2 {loses.} f5 16. Qe2 Bxe4 $19 (16... fxe4 $2 17. c4 $19)) 15... f5 {[%emt 0:00:07]} 16. Qh3 {[%emt 0:00:01]} (16. Qg3 {with more complications.} Bd5 17. h5 g5 18. Qe5) 16... Bd5 {[%emt 0:00:20]} 17. O-O {[%emt 0:00:05]} c6 {[%emt 0:00:43]} 18. Rfb1 {[%emt 0:00:01]} g5 {[%emt 0:00:10]} 19. hxg5 {[%emt 0:00:05]} Qxg5 {[%emt 0:00:01]} 20. a4 {[%emt 0:00:06]} h5 {[%emt 0:00:12]} 21. axb5 {[%emt 0:00:02]} axb5 {[%emt 0:00:02]} 22. Qh2 {[%emt 0:00:06]} h4 {[%emt 0:00:12]} 23. Ne2 {[%emt 0:00:04]} (23. Kf1 $11) 23... Qg4 {[%emt 0:00:27]} (23... Ba2 $1 $15 24. Rc1 h3) 24. Nf4 {[%emt 0:00:14]} Rxa1 {[%emt 0:00:04]} 25. Rxa1 {[%emt 0:00:00]} Ra8 $1 {[%emt 0:00:03]} 26. Rc1 {[%emt 0:00:31]} Ra2 {[%emt 0:00:17][%cal Oa2c2]} 27. Qh3 {[%emt 0:00:18]} Rb2 {[%emt 0:02:03]} 28. c3 {[%emt 0:00:11]} Ra2 {[%emt 0:00:19]} 29. Qh1 {[%emt 0:02:22]} Bc4 {[%emt 0:00:02][%cal Oa2f2] White must now prevent ...Rxf2!} 30. Nh3 {[%emt 0:00:46] White is weak on the light squares} (30. Qh3 $11 {keeps the balance.}) 30... Qe2 {[%emt 0:00:27]} (30... f4 $17 {Threatens to win with ...fxe3.} 31. Nxf4 Rxf2) 31. Kh2 {[%emt 0:00:01]} Qb2 {[%emt 0:00:05]} 32. Qe1 {[%emt 0:00:16]} Bd3 {[%emt 0:00:04]} 33. Kg1 {[%emt 0:00:06]} Qd2 {[%emt 0:00:14]} 34. Qxd2 {[%emt 0:00:10]} Rxd2 {[%emt 0:00:01][%mdl 4096] Endgame. KRB-KRN} 35. Nf4 {[%emt 0:00:00]} Kd6 {[%emt 0:00:01]} 36. Ra1 {[%emt 0:00:17]} Rc2 {[%emt 0:00:04]} 37. Ra7 {[%emt 0:00:14]} Rxc3 $2 {[%emt 0:00:04][%mdl 8192]} (37... e5 $11 {and Black has nothing to worry.} 38. dxe5+ Kxe5) 38. Ng6 $18 {[%emt 0:00:01][%cal Og6e5] [#] Ne5! would kill now.} e5 {[%emt 0:00:20]} 39. dxe5+ {[%emt 0:00:06]} Kd5 {[%emt 0:00:08]} 40. Rd7+ {[%emt 0:00:03]} Ke6 {[%emt 0:00:01]} 41. Rd6+ {[%emt 0:00:20]} Kf7 {[%emt 0:00:01]} 42. Rf6+ {[%emt 0:00:01]} Kg7 {[%emt 0:00:01]} 43. Nxh4 {[%emt 0:00:01]} c5 {[%emt 0:00:03][%cal Bc6c5,Bc5b4][%mdl 32]} 44. Nxf5+ {[%emt 0:00:01] White mates.} ({Inferior is} 44. Rxf5 cxb4 45. Rf6 b3 46. Nf5+ Kg8 $11) 44... Kg8 {[%emt 0:00:02]} 45. e6 {[%emt 0:00:42][%cal Be5e6,Be6e7][%mdl 32]} cxb4 {[%emt 0:00:01]} 46. Rg6+ {[%emt 0:00:11]} Kh8 {[%emt 0:00:08]} 47. e7 {[%emt 0:00:12]} Rc8 {[%emt 0:00:03]} 48. Rd6 {[%emt 0:00:03] Weighted Error Value: White=0.11 (very precise) /Black=0.45.  Loses game:     	---       	Black=1      Mistake:       	White=3     	Black=3      Inaccurate:     	White=3     	Black=3      OK:         	White=16    	Black=8      Best:        	White=1     	---        Strong:       	---       	Black=1} 1-0

[Event "CCT Chessable Masters D-III 2024"]
[Site "Online"]
[Date "2024.02.02"]
[Round "51"]
[White "Demchenko, Anton"]
[Black "bardiya_Daneshvar"]
[Result "1/2-1/2"]
[ECO "B53"]
[WhiteElo "2609"]
[BlackElo "2586"]
[Annotator "ChessBase"]
[PlyCount "102"]
[EventDate "2024.01.12"]
[EventType "k.o."]
[EventCountry "NET"]
[SourceTitle "playchess.com"]
[Source "ChessBase"]
[SourceQuality "1"]
[TimeControl "600+2"]

1. e4 {[%emt 0:00:02]} c5 {[%emt 0:00:02]} 2. Nf3 {[%emt 0:00:07]} d6 {[%emt 0:00:01]} 3. d4 {[%emt 0:00:02]} cxd4 {[%emt 0:00:00]} 4. Qxd4 {[%emt 0:00:00]} Nf6 {[%emt 0:00:02]} 5. Bg5 {[%emt 0:00:01]} e6 {[%emt 0:00:13]} 6. Nc3 {[%emt 0:00:09]} a6 {[%emt 0:00:11]} 7. O-O-O {[%emt 0:00:18]} Nc6 {[%emt 0:00:02]} 8. Qd2 {[%emt 0:00:27]} h6 {[%emt 0:00:17]} 9. Bh4 {[%emt 0:00:51]} Be7 {[%emt 0:00:17]} 10. Bxf6 {[%emt 0:00:15]} Bxf6 {[%emt 0:00:31]} 11. Qxd6 {[%emt 0:00:04]} Qxd6 {[%emt 0:00:40]} 12. Rxd6 {[%emt 0:00:01]} Ke7 {[%emt 0:00:01]} 13. Rd2 {[%emt 0:00:23]} g5 {[%emt 0:00:31]} 14. h3 {[%emt 0:00:15]} h5 {[%emt 0:00:32]} 15. Na4 {[%emt 0:01:58]} b5 {[%emt 0:00:29]} 16. Nb6 {[%emt 0:00:19]} Rb8 {[%emt 0:00:06]} 17. Nxc8+ {[%emt 0:00:01]} Rbxc8 {[%emt 0:00:00]} 18. Kb1 {[%emt 0:00:24]} g4 {[%emt 0:01:19]} 19. Ne1 {[%emt 0:00:05]} Ne5 {[%emt 0:00:16]} 20. Be2 {[%emt 0:01:06]} Rcg8 {[%emt 0:00:44]} 21. c3 {[%emt 0:01:06]} Bh4 {[%emt 0:00:56]} 22. g3 {[%emt 0:00:55]} Bg5 {[%emt 0:00:02]} 23. Rd1 {[%emt 0:00:01]} h4 {[%emt 0:00:03]} 24. hxg4 {[%emt 0:00:11]} hxg3 {[%emt 0:00:02]} 25. Rxh8 {[%emt 0:00:01]} Rxh8 {[%emt 0:00:03]} 26. fxg3 {[%emt 0:00:00]} Rh2 {[%emt 0:00:34]} 27. Nf3 {[%emt 0:00:07]} Rxe2 {[%emt 0:00:49]} 28. Nxe5 {[%emt 0:00:01]} Rxe4 {[%emt 0:00:02]} 29. Nc6+ {[%emt 0:01:07]} Kf8 {[%emt 0:00:12]} 30. Rd7 {[%emt 0:00:23]} Re1+ {[%emt 0:00:32]} 31. Kc2 {[%emt 0:00:02]} Re2+ {[%emt 0:00:01]} 32. Kb1 {[%emt 0:00:05]} Rg2 {[%emt 0:00:20]} 33. Rd3 {[%emt 0:00:02]} Rg1+ {[%emt 0:00:10]} 34. Kc2 {[%emt 0:00:01]} Rg2+ {[%emt 0:00:00]} 35. Kb1 {[%emt 0:00:01]} f6 {[%emt 0:00:22]} 36. Nd4 {[%emt 0:00:03]} Kf7 {[%emt 0:00:02]} 37. Nf3 {[%emt 0:00:09]} Bh6 {[%emt 0:00:01]} 38. g5 {[%emt 0:00:06]} Bxg5 {[%emt 0:00:18]} 39. Nxg5+ {[%emt 0:00:02]} fxg5 {[%emt 0:00:00]} 40. b3 {[%emt 0:00:00]} e5 {[%emt 0:00:14]} 41. c4 {[%emt 0:00:01]} bxc4 {[%emt 0:00:01]} 42. bxc4 {[%emt 0:00:00]} e4 {[%emt 0:00:03]} 43. Re3 {[%emt 0:00:03]} Kf6 {[%emt 0:00:06]} 44. Rxe4 {[%emt 0:00:01]} Rxg3 {[%emt 0:00:00]} 45. Kb2 {[%emt 0:00:04]} Kf5 {[%emt 0:00:09]} 46. Re8 {[%emt 0:00:00]} g4 {[%emt 0:00:03]} 47. c5 {[%emt 0:00:04]} Rh3 {[%emt 0:00:01]} 48. Rf8+ {[%emt 0:00:08]} Ke6 {[%emt 0:00:03]} 49. Rg8 {[%emt 0:00:02]} Kd5 {[%emt 0:00:01]} 50. Rxg4 {[%emt 0:00:01]} Kxc5 {[%emt 0:00:01]} 51. Rg5+ {[%emt 0:00:02]} Kb6 {[%emt 0:00:02]} 1/2-1/2

[Event "CCT Chessable Masters D-III 2024"]
[Site "Online"]
[Date "2024.02.02"]
[Round "51"]
[White "Dreev, Aleksey"]
[Black "Antipov, Mikhail Al."]
[Result "0-1"]
[ECO "E36"]
[WhiteElo "2606"]
[BlackElo "2604"]
[Annotator "ChessBase"]
[PlyCount "118"]
[EventDate "2024.01.12"]
[EventType "k.o."]
[EventCountry "NET"]
[SourceTitle "playchess.com"]
[Source "ChessBase"]
[SourceQuality "1"]
[TimeControl "600+2"]

1. d4 {[%emt 0:00:03]} Nf6 {[%emt 0:00:04]} 2. c4 {[%emt 0:00:02]} e6 {[%emt 0:00:02]} 3. Nc3 {[%emt 0:00:01]} Bb4 {[%emt 0:00:01]} 4. Qc2 {[%emt 0:00:00]} O-O {[%emt 0:00:08]} 5. a3 {[%emt 0:00:03]} Bxc3+ {[%emt 0:00:01]} 6. Qxc3 {[%emt 0:00:00]} d5 {[%emt 0:00:01]} 7. Nf3 {[%emt 0:00:02]} Nbd7 {[%emt 0:00:02]} 8. e3 {[%emt 0:01:03]} b6 {[%emt 0:00:05]} 9. b3 {[%emt 0:00:03]} Bb7 {[%emt 0:00:58]} 10. Be2 {[%emt 0:00:55]} c5 {[%emt 0:00:05]} 11. O-O {[%emt 0:00:10]} Rc8 {[%emt 0:00:21]} 12. a4 {[%emt 0:01:30]} Re8 {[%emt 0:00:26]} 13. Ba3 {[%emt 0:00:27]} Ne4 {[%emt 0:00:19]} 14. Qb2 {[%emt 0:00:02]} cxd4 {[%emt 0:00:15]} 15. Nxd4 {[%emt 0:00:33]} Qg5 {[%emt 0:00:11]} 16. f4 {[%emt 0:00:07]} Qf6 {[%emt 0:00:11]} 17. Nb5 {[%emt 0:00:21]} a6 {[%emt 0:00:08]} 18. Qxf6 {[%emt 0:00:04]} Ndxf6 {[%emt 0:00:00]} 19. Nd4 {[%emt 0:00:17]} dxc4 {[%emt 0:01:24]} 20. Bxc4 {[%emt 0:00:01]} Nd2 {[%emt 0:01:01]} 21. Rfc1 {[%emt 0:00:03]} Nd5 {[%emt 0:00:20]} 22. Bxd5 {[%emt 0:00:59]} Bxd5 {[%emt 0:00:00]} 23. Rxc8 {[%emt 0:01:22]} Rxc8 {[%emt 0:00:03]} 24. Rd1 {[%emt 0:00:01]} Nxb3 {[%emt 0:00:13]} 25. e4 {[%emt 0:00:01]} Nxd4 {[%emt 0:00:44]} 26. Rxd4 {[%emt 0:00:02]} Bb7 {[%emt 0:00:11]} 27. Rb4 {[%emt 0:00:13]} h5 {[%emt 0:00:15]} 28. Rxb6 {[%emt 0:00:51]} Bxe4 {[%emt 0:00:04]} 29. Rb2 {[%emt 0:00:01]} Rc1+ {[%emt 0:00:24]} 30. Kf2 {[%emt 0:00:01]} Ra1 {[%emt 0:00:00]} 31. Rb4 {[%emt 0:00:25]} Ra2+ {[%emt 0:00:22]} 32. Bb2 {[%emt 0:00:03]} Bc6 {[%emt 0:00:04]} 33. Kg3 {[%emt 0:00:40]} Bxa4 {[%emt 0:00:55]} 34. Kh4 {[%emt 0:00:01]} Bc6 {[%emt 0:00:15]} 35. g3 {[%emt 0:00:02]} Bf3 {[%emt 0:00:32]} 36. h3 {[%emt 0:00:01]} a5 {[%emt 0:00:07]} 37. Rb3 {[%emt 0:00:01]} Bd1 {[%emt 0:00:20]} 38. Rb8+ {[%emt 0:00:14]} Kh7 {[%emt 0:00:02]} 39. g4 {[%emt 0:00:04]} hxg4 {[%emt 0:00:03]} 40. hxg4 {[%emt 0:00:00]} a4 {[%emt 0:00:06]} 41. f5 {[%emt 0:00:04]} a3 {[%emt 0:00:09]} 42. Be5 {[%emt 0:00:01]} Rg2 {[%emt 0:00:05]} 43. fxe6 {[%emt 0:00:10]} Rxg4+ {[%emt 0:00:12]} 44. Kh3 {[%emt 0:00:01]} fxe6 {[%emt 0:00:00]} 45. Rb7 {[%emt 0:00:04]} Rg5 {[%emt 0:00:08]} 46. Bf6 {[%emt 0:00:08]} a2 {[%emt 0:00:09]} 47. Ra7 {[%emt 0:00:01]} Rg6 {[%emt 0:00:00]} 48. Be5 {[%emt 0:00:02]} Bb3 {[%emt 0:00:01]} 49. Ra3 {[%emt 0:00:05]} Rg5 {[%emt 0:00:06]} 50. Ba1 {[%emt 0:00:04]} Bd5 {[%emt 0:00:01]} 51. Ra7 {[%emt 0:00:01]} Kh6 {[%emt 0:00:03]} 52. Bb2 {[%emt 0:00:03]} Kh7 {[%emt 0:00:06]} 53. Kh4 {[%emt 0:00:03]} Rg6 {[%emt 0:00:00]} 54. Be5 {[%emt 0:00:01]} Bc4 {[%emt 0:00:02]} 55. Kh5 {[%emt 0:00:02]} Rg1 {[%emt 0:00:02]} 56. Bd4 {[%emt 0:00:04]} Rg2 {[%emt 0:00:02]} 57. Be5 {[%emt 0:00:01]} Rg1 {[%emt 0:00:03]} 58. Bd4 {[%emt 0:00:01]} Be2+ {[%emt 0:00:00]} 59. Kh4 {[%emt 0:00:05]} Rg4+ {[%emt 0:00:01]} 0-1

[Event "CCT Chessable Masters D-III 2024"]
[Site "Online"]
[Date "2024.02.02"]
[Round "51"]
[White "Antipov, Mikhail Al."]
[Black "Dreev, Aleksey"]
[Result "1/2-1/2"]
[ECO "B40"]
[WhiteElo "2604"]
[BlackElo "2606"]
[Annotator "ChessBase"]
[PlyCount "94"]
[EventDate "2024.01.12"]
[EventType "k.o."]
[EventCountry "NET"]
[SourceTitle "playchess.com"]
[Source "ChessBase"]
[SourceQuality "1"]
[TimeControl "600+2"]

1. e4 {[%emt 0:00:05]} c5 {[%emt 0:00:10]} 2. Nf3 {[%emt 0:00:03]} e6 {[%emt 0:00:00]} 3. b3 {[%emt 0:00:00]} Nc6 {[%emt 0:00:23]} 4. Bb2 {[%emt 0:00:03]} d6 {[%emt 0:00:11]} 5. d4 {[%emt 0:00:02]} cxd4 {[%emt 0:00:04]} 6. Nxd4 {[%emt 0:00:00]} Nf6 {[%emt 0:00:02]} 7. Nxc6 {[%emt 0:00:05]} bxc6 {[%emt 0:00:02]} 8. Bd3 {[%emt 0:00:00]} Be7 {[%emt 0:00:16]} 9. O-O {[%emt 0:00:01]} O-O {[%emt 0:00:02]} 10. c4 {[%emt 0:00:07]} e5 {[%emt 0:00:25]} 11. Nc3 {[%emt 0:00:16]} Be6 {[%emt 0:00:14]} 12. Qc2 {[%emt 0:00:26]} a5 {[%emt 0:00:36]} 13. Na4 {[%emt 0:01:05]} Qc7 {[%emt 0:00:07]} 14. Rfe1 {[%emt 0:00:37]} Nd7 {[%emt 0:02:00]} 15. Rad1 {[%emt 0:00:03]} f6 {[%emt 0:00:07]} 16. c5 {[%emt 0:01:20]} Nxc5 {[%emt 0:00:46]} 17. Bc4 {[%emt 0:00:52]} Bxc4 {[%emt 0:01:28]} 18. Qxc4+ {[%emt 0:00:00]} Kh8 {[%emt 0:00:01]} 19. Nxc5 {[%emt 0:00:03]} dxc5 {[%emt 0:00:00]} 20. Ba3 {[%emt 0:00:32]} Rfd8 {[%emt 0:00:21]} 21. Bxc5 {[%emt 0:00:08]} Bxc5 {[%emt 0:00:04]} 22. Qxc5 {[%emt 0:00:00]} h6 {[%emt 0:00:17]} 23. g3 {[%emt 0:00:26]} Kh7 {[%emt 0:00:52]} 24. Kg2 {[%emt 0:00:02]} Rd7 {[%emt 0:00:09]} 25. Rxd7 {[%emt 0:00:14]} Qxd7 {[%emt 0:00:01]} 26. Rc1 {[%emt 0:00:01]} Ra6 {[%emt 0:00:44]} 27. Rc3 {[%emt 0:00:09]} a4 {[%emt 0:00:09]} 28. Qc4 {[%emt 0:00:22]} Qa7 {[%emt 0:00:38]} 29. b4 {[%emt 0:00:34]} a3 {[%emt 0:00:01]} 30. Rd3 {[%emt 0:00:11]} Rb6 {[%emt 0:00:04]} 31. Qe6 {[%emt 0:00:56]} Qb8 {[%emt 0:00:02]} 32. Rxa3 {[%emt 0:01:58]} Rxb4 {[%emt 0:00:02]} 33. Rc3 {[%emt 0:00:00]} Rd4 {[%emt 0:00:27]} 34. Rxc6 {[%emt 0:00:05]} Rd8 {[%emt 0:00:01]} 35. h4 {[%emt 0:00:12]} Qa7 {[%emt 0:00:05]} 36. h5 {[%emt 0:00:06]} Qa4 {[%emt 0:00:07]} 37. Qf5+ {[%emt 0:00:06]} Kh8 {[%emt 0:00:01]} 38. Rc7 {[%emt 0:00:04]} Rg8 {[%emt 0:00:06]} 39. Qg6 {[%emt 0:00:04]} Qxa2 {[%emt 0:00:02]} 40. Rf7 {[%emt 0:00:01]} Qe6 {[%emt 0:00:05]} 41. g4 {[%emt 0:00:01]} Qc6 {[%emt 0:00:03]} 42. g5 {[%emt 0:00:02]} Qe6 {[%emt 0:00:04]} 43. Rxf6 {[%emt 0:00:03]} Qg4+ {[%emt 0:00:01]} 44. Kf1 {[%emt 0:00:01]} Qd1+ {[%emt 0:00:01]} 45. Kg2 {[%emt 0:00:00]} Qg4+ {[%emt 0:00:01]} 46. Kf1 {[%emt 0:00:01]} Qd1+ {[%emt 0:00:04]} 47. Kg2 {[%emt 0:00:01]} Qg4+ {[%emt 0:00:01]} 1/2-1/2

[Event "CCT Chessable Masters D-III 2024"]
[Site "Online"]
[Date "2024.02.02"]
[Round "51"]
[White "Yoo, Christopher Woojin"]
[Black "rasmussvane"]
[Result "1-0"]
[ECO "D37"]
[WhiteElo "2595"]
[BlackElo "2587"]
[Annotator "ChessBase"]
[PlyCount "153"]
[EventDate "2024.01.12"]
[EventType "k.o."]
[EventCountry "NET"]
[SourceTitle "playchess.com"]
[Source "ChessBase"]
[SourceQuality "1"]
[TimeControl "600+2"]

1. d4 {[%emt 0:00:08]} Nf6 {[%emt 0:02:14]} 2. Nf3 {[%emt 0:00:03]} d5 {[%emt 0:00:02]} 3. c4 {[%emt 0:00:02]} e6 {[%emt 0:00:03]} 4. Nc3 {[%emt 0:00:03]} Be7 {[%emt 0:00:03]} 5. Bf4 {[%emt 0:00:08]} O-O {[%emt 0:00:04]} 6. e3 {[%emt 0:00:03]} Nbd7 {[%emt 0:00:03]} 7. a3 {[%emt 0:00:04]} c5 {[%emt 0:00:06]} 8. cxd5 {[%emt 0:00:03]} Nxd5 {[%emt 0:00:03]} 9. Nxd5 {[%emt 0:00:03]} exd5 {[%emt 0:00:02]} 10. dxc5 {[%emt 0:00:02]} Nxc5 {[%emt 0:00:02]} 11. Be5 {[%emt 0:00:02]} Bf5 {[%emt 0:00:22]} 12. Be2 {[%emt 0:00:07]} Bf6 {[%emt 0:00:04]} 13. Bxf6 {[%emt 0:00:27]} Qxf6 {[%emt 0:00:04]} 14. Qd4 {[%emt 0:00:04]} Qd6 {[%emt 0:00:07]} 15. Rd1 {[%emt 0:00:12]} Rfd8 {[%emt 0:00:09]} 16. b4 {[%emt 0:00:08]} Ne6 {[%emt 0:00:13]} 17. Qb2 {[%emt 0:00:04]} Rac8 {[%emt 0:00:07]} 18. Rd2 {[%emt 0:00:07]} Be4 {[%emt 0:01:03]} 19. O-O {[%emt 0:00:05]} b6 {[%emt 0:00:03]} 20. Nd4 {[%emt 0:00:16]} Nxd4 {[%emt 0:00:05]} 21. Qxd4 {[%emt 0:00:04]} Qg6 {[%emt 0:00:06]} 22. f3 {[%emt 0:00:20]} Bf5 {[%emt 0:00:02]} 23. e4 {[%emt 0:00:22]} Be6 {[%emt 0:00:05]} 24. Bc4 {[%emt 0:00:06]} Rd6 {[%emt 0:00:57]} 25. exd5 {[%emt 0:00:42]} Rcd8 {[%emt 0:00:03]} 26. Qe5 {[%emt 0:00:16]} h6 {[%emt 0:00:14]} 27. Rc1 {[%emt 0:00:48]} Bd7 {[%emt 0:00:04]} 28. Bd3 {[%emt 0:00:29]} Qf6 {[%emt 0:00:14]} 29. Qxf6 {[%emt 0:00:06]} gxf6 {[%emt 0:00:02]} 30. Rc7 {[%emt 0:00:03]} Kf8 {[%emt 0:00:06]} 31. Be4 {[%emt 0:00:25]} a5 {[%emt 0:00:12]} 32. bxa5 {[%emt 0:00:06]} bxa5 {[%emt 0:00:02]} 33. g4 {[%emt 0:00:08]} Bc6 {[%emt 0:00:10]} 34. Rb2 {[%emt 0:00:22]} Bxd5 {[%emt 0:00:08]} 35. Bxd5 {[%emt 0:00:04]} Rxd5 {[%emt 0:00:02]} 36. Rbb7 {[%emt 0:00:03]} Rd2 {[%emt 0:00:16]} 37. Rxf7+ {[%emt 0:00:04]} Kg8 {[%emt 0:00:02]} 38. Rg7+ {[%emt 0:00:30]} Kh8 {[%emt 0:00:27]} 39. Rh7+ {[%emt 0:00:04]} Kg8 {[%emt 0:00:03]} 40. Rbg7+ {[%emt 0:00:17]} Kf8 {[%emt 0:00:03]} 41. Rc7 {[%emt 0:00:05]} Kg8 {[%emt 0:00:05]} 42. Rhg7+ {[%emt 0:00:07]} Kh8 {[%emt 0:00:04]} 43. Rh7+ {[%emt 0:00:29]} Kg8 {[%emt 0:00:03]} 44. Rcg7+ {[%emt 0:00:23]} Kf8 {[%emt 0:00:03]} 45. Rg6 {[%emt 0:00:08]} Ra2 {[%emt 0:00:15]} 46. Rh8+ {[%emt 0:00:04]} Kf7 {[%emt 0:00:03]} 47. Rxf6+ {[%emt 0:00:06]} Kxf6 {[%emt 0:00:02]} 48. Rxd8 {[%emt 0:00:03]} h5 {[%emt 0:00:19]} 49. Rd3 {[%emt 0:00:17]} hxg4 {[%emt 0:00:05]} 50. fxg4 {[%emt 0:00:02]} Kg5 {[%emt 0:00:02]} 51. h3 {[%emt 0:00:03]} a4 {[%emt 0:00:15]} 52. Kf1 {[%emt 0:00:03]} Kf4 {[%emt 0:00:06]} 53. Ke1 {[%emt 0:00:05]} Ke4 {[%emt 0:00:03]} 54. Rg3 {[%emt 0:00:03]} Kf4 {[%emt 0:00:08]} 55. Rc3 {[%emt 0:00:03]} Kg5 {[%emt 0:00:05]} 56. Kd1 {[%emt 0:00:04]} Kh4 {[%emt 0:00:26]} 57. Kc1 {[%emt 0:00:03]} Rf2 {[%emt 0:00:02]} 58. Rd3 {[%emt 0:00:05]} Re2 {[%emt 0:00:07]} 59. Kb1 {[%emt 0:00:09]} Rf2 {[%emt 0:00:03]} 60. Rd4 {[%emt 0:00:10]} Rf3 {[%emt 0:00:13]} 61. Rxa4 {[%emt 0:00:04]} Rxh3 {[%emt 0:00:02]} 62. Kb2 {[%emt 0:00:06]} Rh2+ {[%emt 0:00:03]} 63. Kb3 {[%emt 0:00:11]} Rh3+ {[%emt 0:00:03]} 64. Kb2 {[%emt 0:00:18]} Rh2+ {[%emt 0:00:04]} 65. Kc3 {[%emt 0:00:02]} Rh3+ {[%emt 0:00:03]} 66. Kd2 {[%emt 0:00:06]} Rf3 {[%emt 0:00:07]} 67. Ke2 {[%emt 0:00:08]} Rb3 {[%emt 0:00:04]} 68. Kd1 {[%emt 0:00:04]} Rf3 {[%emt 0:00:04]} 69. Kd2 {[%emt 0:00:06]} Rg3 {[%emt 0:00:05]} 70. Ra8 {[%emt 0:00:06]} Rxg4 {[%emt 0:00:05]} 71. a4 {[%emt 0:00:11]} Kh5 {[%emt 0:00:08]} 72. Rh8+ {[%emt 0:00:04]} Kg6 {[%emt 0:00:10]} 73. Rg8+ {[%emt 0:00:03]} Kf5 {[%emt 0:00:02]} 74. Rxg4 {[%emt 0:00:02]} Kxg4 {[%emt 0:00:03]} 75. a5 {[%emt 0:00:03]} Kf5 {[%emt 0:00:05]} 76. a6 {[%emt 0:00:02]} Ke6 {[%emt 0:00:02]} 77. a7 {[%emt 0:00:02]} 1-0